{"text_format":"1","workbook":"xlsx","n_sheets":4,"sheets":["Disclaimer","CoinValue","Sheet2","How to"],"not_rendered":{"charts":0,"images":4,"macros":1,"external_links":0,"defined_names":1,"comments":0,"pivot_tables":0},"unopened":[],"bounds":{"document_bytes":16777216,"sheet_cells":100000,"rows_first":2000,"rows_last":500,"rows_between":2000,"halvings":0,"cell_chars":16384,"cell_head_chars":4096},"cells_cut":0,"cells_raw":0,"read":"whole","date_system":"1900"}

{"sheet":"Disclaimer","index":0,"n_rows":31,"n_cols":3,"rows_kept":31,"cut":false,"hidden":false,"merged":[[30,0,30,14],[0,0,1,15]]}
["DISCLAIMER"]
[]
[]
[]
[]
[]
[null,null,"The accuracy of CoinValue is not guaranteed. This tool is provided on an “as-is” basis, and in"]
[null,null,"no way assumes liability for loss due to its content. Use of CoinValue will be considered"]
[null,null,"acceptance of this agreement."]
[null,null,"This tool comes without warranty of any kind, including without limitation the warranties of"]
[null,null,"merchantability, fitness for a particular purpose and non-infringement. The entire risk as to the"]
[null,null,"quality and performance of the computations is borne by you. Should the results prove to be in"]
[null,null,"error, you assume the entire cost of any required service and repair, and any consequential"]
[null,null,"damage."]
[null,null,"You are solely responsible for any loss of profit or any other commercial damage, including but"]
[null,null,"not limited to special, incidental, consequential or other damages. This disclaimer specifically"]
[null,null,"disclaims all other warranties, expressed or implied, including but not limited to the implied"]
[null,null,"warranties of merchantability and fitness for a particular purpose, related to defects in the"]
[null,null,"computed results or the documentation."]
[]
[]
[]
[]
[]
[]
[]
[]
[]
[]
[]
["CoinValue is © Christiaan Robert Thonus 2018"]

{"sheet":"CoinValue","index":1,"n_rows":160,"n_cols":21,"rows_kept":160,"cut":false,"hidden":false,"merged":[[0,6,0,8],[15,1,15,2],[15,4,15,5],[19,2,19,3],[28,0,28,14],[21,1,21,2],[21,4,21,5],[13,2,13,3],[6,12,6,13],[4,12,4,13],[8,11,8,12]]}
[null,null,null,null,null,null,"CoinValue",null,null,null,null,null,null,null,null,"EUR","1 CENT",null,null,"AFN","Afghani"]
[null,null,null,"EUR",null,null,"1 EURO",null,null,null,null,null,null,null,null,"USD","2 CENT",null,null,"ANG","Antilliaanse gulden"]
[null,null,null,null,null,null,{"$f":"IF(G2=\"1 CENT\",0.01,IF(G2=\"2 CENT\",0.02,IF(G2=\"5 CENT\",0.05,IF(G2=\"10 CENT\",0.1,IF(G2=\"20 CENT\",0.2,IF(G2=\"25 CENT\",0.25,IF(G2=\"50 CENT\",0.5,IF(G2=\"1 EURO\",1,IF(G2=\"2 EURO\",2,IF(G2=\"1 DOLLAR\",1,IF(G2=\"2 DOLLAR\",2,IF(G2=\"1 FRANC\",1,IF(G2=\"2 FRANC\",2,IF(G2=\"5 FRANC\",5,IF(G2=\"1 PENNY\",0.01,IF(G2=\"2 PENCE\",0.02,IF(G2=\"5 PENCE\",0.05,IF(G2=\"10 PENCE\",0.1,IF(G2=\"20 PENCE\",0.2,IF(G2=\"50 PENCE\",0.5,IF(G2=\"1 POUND\",1,IF(G2=\"2 POUND\",2,IF(G2=\"5 POUND\",5,IF(G2=\"1 YEN\",1,IF(G2=\"5 YEN\",5,IF(G2=\"10 YEN\",10,IF(G2=\"50 YEN\",50,IF(G2=\"100 YEN\",100,IF(G2=\"500 YEN\",500,IF(G2=\"1 YUAN\",1,\"ERROR\"))))))))))))))))))))))))))))))","v":1},null,null,null,null,null,null,null,null,"CAD","5 CENT",null,null,"ARS","Argentijnse peso"]
[null,null,null,null,null,null,null,null,null,null,null,null,null,null,null,"AUD","10 CENT",null,null,"AUD","Australische dollar"]
["①",null,null,null,null,null,null,null,null,124,"Weight (g)",null,{"$f":"IF($A$37=TRUE,($J$5/$A$46)*$G$3,IF($B$37=TRUE,($J$5/$B$46)*$G$3,IF($C$37=TRUE,($J$5/$C$46)*$G$3,IF(D37=TRUE,(J5/D46)*G3,IF(E37=TRUE,(J5/E46)*G3,IF(F37=TRUE,(J5/F46)*G3,IF(G37=TRUE,(J5/G46)*G3,IF(H37=TRUE,(J5/H46)*G3,IF(I37=TRUE,(J5/A48)*G3,IF(J37=TRUE,(J5/B48)*G3,IF(K37=TRUE,(J5/C48)*G3,IF(L37=TRUE,(J5/D48)*G3,IF(M37=TRUE,(J5/E48)*G3,IF(N37=TRUE,(J5/F48)*G3,IF(A38=TRUE,(J5/A50)*G3,IF(B38=TRUE,(J5/B50)*G3,IF(C38=TRUE,(J5/C50)*G3,IF(D38=TRUE,(J5/D50)*G3,IF(E38=TRUE,(J5/E50)*G3,IF(F38=TRUE,(J5/F50)*G3,IF(G38=TRUE,(J5/G50)*G3,IF(H38=TRUE,(J5/A52)*G3,IF(I38=TRUE,(J5/B52)*G3,IF(J38=TRUE,(J5/C52)*G3,IF(K38=TRUE,(J5/D52)*G3,IF(L38=TRUE,(J5/E52)*G3,IF(M38=TRUE,(J5/F52)*G3,IF(N38=TRUE,(J5/G52)*G3,IF(O38=TRUE,(J5/H52)*G3,IF(A40=TRUE,(J5/A54)*G3,IF(B40=TRUE,(J5/B54)*G3,IF(C40=TRUE,(J5/C54)*G3,IF(D40=TRUE,(J5/D54)*G3,IF(E40=TRUE,(J5/E54)*G3,IF(F40=TRUE,(J5/F54)*G3,IF(G40=TRUE,(J5/G54)*G3,IF(H40=TRUE,(J5/A56)*G3,IF(I40=TRUE,(J5/B56)*G3,IF(J40=TRUE,(J5/C56)*G3,IF(K40=TRUE,(J5/D56)*G3,IF(L40=TRUE,(J5/E56)*G3,IF(M40=TRUE,(J5/F56)*G3,IF(N40=TRUE,(J5/G56)*G3,IF(O40=TRUE,(J5/H56)*G3,IF(A42=TRUE,(J5/I56)*G3,IF(B42=TRUE,(J5/A58)*G3,IF(C42=TRUE,(J5/B58)*G3,IF(D42=TRUE,(J5/C58)*G3,IF(E42=TRUE,(J5/D58)*G3,IF(F42=TRUE,(J5/E58)*G3,IF(G42=TRUE,(J5/F58)*G3,IF(H42=TRUE,(J5/A60)*G3,\"ERROR\"))))))))))))))))))))))))))))))))))))))))))))))))))))","v":16.533333333333335},null,{"$f":"D2","v":"EUR"},"CHF","20 CENT",null,null,"AWG","Arubaanse gulden"]
[null,null,null,null,null,null,null,null,null,null,null,null,null,null,null,"GBP","25 CENT",null,null,"BRL","Braziliaanse real"]
[null,null,null,null,null,null,null,null,null,{"$f":"$J$5/1000","v":0.124}," kg",null,{"$f":"IF($A$37=TRUE,$J$5/$A$46,IF($B$37=TRUE,$J$5/$B$46,IF(C37=TRUE,J5/C46,IF(D37=TRUE,J5/D46,IF(E37=TRUE,J5/E46,IF(F37=TRUE,J5/F46,IF(G37=TRUE,J5/G46,IF(H37=TRUE,J5/H46,IF(I37=TRUE,J5/A48,IF(I37=TRUE,J5/A48,IF(J37=TRUE,J5/B48,IF(K37=TRUE,J5/C48,IF(L37=TRUE,J5/D48,IF(M37=TRUE,J5/E48,IF(N37=TRUE,J5/F48,IF(A38=TRUE,J5/A50,IF(B38=TRUE,J5/B50,IF(C38=TRUE,J5/C50,IF(D38=TRUE,J5/D50,IF(E38=TRUE,J5/E50,IF(F38=TRUE,J5/F50,IF(G38=TRUE,J5/G50,IF(H38=TRUE,J5/A52,IF(I38=TRUE,J5/B52,IF(J38=TRUE,J5/C52,IF(K38=TRUE,J5/D52,IF(L38=TRUE,J5/E52,IF(M38=TRUE,J5/F52,IF(N38=TRUE,J5/G52,IF(O38=TRUE,J5/H52,IF(A40=TRUE,J5/A54,IF(B40=TRUE,J5/B54,IF(C40=TRUE,J5/C54,IF(D40=TRUE,J5/D54,IF(E40=TRUE,J5/E54,IF(F40=TRUE,J5/F54,IF(G40=TRUE,J5/G54,IF(H40=TRUE,J5/A56,IF(I40=TRUE,J5/B56,IF(J40=TRUE,J5/C56,IF(K40=TRUE,J5/D56,IF(L40=TRUE,J5/E56,IF(M40=TRUE,J5/F56,IF(N40=TRUE,J5/G56,IF(O40=TRUE,J5/H56,IF(A42=TRUE,J5/I56,IF(B42=TRUE,J5/A58,IF(C42=TRUE,J5/B58,IF(D42=TRUE,J5/C58,IF(E42=TRUE,J5/D58,IF(F42=TRUE,J5/E58,IF(G42=TRUE,J5/F58,IF(H42=TRUE,J5/A60,\"ERROR\")))))))))))))))))))))))))))))))))))))))))))))))))))))","v":16.533333333333335},null," Coins","JPY","50 CENT",null,null,"BSD","Bahamaanse dollar"]
[null,null,null,null,null,null,null,null,null,null,null,null,null,null,null,"CNY","1 EURO",null,null,"CAD","Canadese dollar"]
[null,null,null,null,null,null,null,null,null,null,null,"Weight per coin",null,{"$f":"IF(J5=\"\",0,$J$5/$M$7)","v":7.4999999999999991}," g",null,"2 EURO",null,null,"CHF","Zwitserse frank"]
[null,null,null,null,null,null,null,null,null,null,null,null,null,null,null,null,"1 DOLLAR",null,null,"CLP","Chileense peso"]
[null,null,null,null,null,null,null,null,null,null,null,null,null,null,null,null,"2 DOLLAR",null,null,"CNY","Chinese yuan (renminbi)"]
[null,null,null,null,null,null,null,null,null,null,null,null,null,null,null,null,"1 FRANC",null,null,"CUP","Cubaanse peso"]
[null,null,null,null,null,null,null,null,null,null,null,null,null,null,null,null,"2 FRANC",null,null,"CZK","Tsjechische kroon"]
["②",null,"Weight per coin (g)",null,null,1,"Part of currency (e.g. 0.01; 0.05; 0.1…)",null,null,null,null,null,null,null,null,null,"5 FRANC",null,null,"DKK","Deense kroon"]
[null,null,null,null,null,null,null,null,null,null,null,null,null,"EUR",null,null,"1 PENNY",null,null,"DOP","Dominicaanse peso"]
[null,3,null,"Coins =",{"$f":"IF(B14=\"\",0,B14*B16)","v":0},null,"g ",null,null,{"$f":"B16*F14","v":3},null,null,null,{"$f":"INDEX(T1:T160,N15)","v":{"$error":"#VALUE!"}},null,null,"2 PENCE",null,null,"EGP","Egyptische pond"]
[null,null,null,null,null,null,null,null,null,null,null,null,null,null,null,null,"5 PENCE",null,null,"EUR","Euro"]
[null,null,null,null,null,null,null,null,null,null,null,null,null,null,null,null,"10 PENCE",null,null,"GBP","Britse pond"]
[null,null,null,null,null,null,null,null,null,null,null,null,null,null,null,null,"20 PENCE",null,null,"HKD","Hong Kong dollar"]
["③",3.3,"Weight per coin (g)",null,null,0.1,"Part of currency (e.g. 0.01; 0.05; 0.1…)",null,null,null,null,null,null,null,null,null,"50 PENCE",null,null,"HUF","Hongaarse forint"]
[null,null,null,null,null,null,null,null,null,null,null,null,null,"EUR",null,null,"1 POUND",null,null,"IDR","Indonesische roepia"]
[null,808.5,null,"Weight (g)",{"$f":"IF(B20=\"\",0,B22/B20)","v":245},null," Coins",null,null,{"$f":"E22*F20","v":24.5},null,null,null,{"$f":"INDEX(T1:T160,N21)","v":{"$error":"#VALUE!"}},null,null,"2 POUND",null,null,"INR","Indiase roepie"]
[null,null,null,null,null,null,null,null,null,null,null,null,null,null,null,null,"5 POUND",null,null,"IQD","Iraakse dinar"]
[null,null,null,null,null,null,null,null,null,null,null,null,null,null,null,null,"1 YEN",null,null,"IRR","Iraanse rial"]
[null,null,null,null,null,null,null,null,null,null,null,null,null,null,null,null,"5 YEN",null,null,"ISK","IJslandse kroon"]
[null,null,null,null,null,null,null,null,null,null,null,null,null,null,null,null,"10 YEN",null,null,"JMD","Jamaicaanse dollar"]
[null,null,null,null,null,null,null,null,null,null,null,null,null,null,null,null,"50 YEN",null,null,"JOD","Jordaanse dinar"]
[null,null,null,null,null,null,null,null,null,null,null,null,null,null,null,null,"100 YEN",null,null,"JPY","Japanse yen"]
["CoinValue is © Christiaan Robert Thonus 2018",null,null,null,null,null,null,null,null,null,null,null,null,null,null,null,"1 YUAN",null,null,"MAD","Marokkaanse dirham"]
[null,null,null,null,null,null,null,null,null,null,null,null,null,null,null,null,null,null,null,"MTL","Maltese lira"]
[null,null,null,null,null,null,null,null,null,null,null,null,null,null,null,null,null,null,null,"MXN","Mexicaanse peso"]
[null,null,null,null,null,null,null,null,null,null,null,null,null,null,null,null,null,null,null,"NOK","Noorse kroon"]
[null,null,null,null,null,null,null,null,null,null,null,null,null,null,null,null,null,null,null,"NZD","Nieuw-Zeelandse dollar"]
[null,null,null,null,null,null,null,null,null,null,null,null,null,null,null,null,null,null,null,"PLN","Poolse zloty"]
[null,null,null,null,null,null,null,null,null,null,null,null,null,null,null,null,null,null,null,"RON","Roemeense leu"]
["EURO","EURO","EURO","EURO","EURO","EURO","EURO","EURO","USD","USD","USD","USD","USD","USD","USD",null,null,null,null,"RUB","Russische roebel"]
[{"$f":"AND($O$5=\"EUR\",AND($G$2=\"1 CENT\"))","v":false},{"$f":"AND($O$5=\"EUR\",AND($G$2=\"2 CENT\"))","v":false},{"$f":"AND($O$5=\"EUR\",AND($G$2=\"5 CENT\"))","v":false},{"$f":"AND($O$5=\"EUR\",AND($G$2=\"10 CENT\"))","v":false},{"$f":"AND($O$5=\"EUR\",AND($G$2=\"20 CENT\"))","v":false},{"$f":"AND($O$5=\"EUR\",AND($G$2=\"50 CENT\"))","v":false},{"$f":"AND($O$5=\"EUR\",AND($G$2=\"1 EURO\"))","v":true},{"$f":"AND($O$5=\"EUR\",AND($G$2=\"2 EURO\"))","v":false},{"$f":"AND($O$5=\"USD\",AND($G$2=\"1 CENT\"))","v":false},{"$f":"AND($O$5=\"USD\",AND($G$2=\"5 CENT\"))","v":false},{"$f":"AND($O$5=\"USD\",AND($G$2=\"10 CENT\"))","v":false},{"$f":"AND($O$5=\"USD\",AND($G$2=\"25 CENT\"))","v":false},{"$f":"AND($O$5=\"USD\",AND($G$2=\"50 CENT\"))","v":false},{"$f":"AND($O$5=\"USD\",AND($G$2=\"1 DOLLAR\"))","v":false},null,null,null,null,null,"SAR","Saoedi-Arabische riyal"]
[{"$f":"AND($O$5=\"CAD\",AND($G$2=\"1 CENT\"))","v":false},{"$f":"AND($O$5=\"CAD\",AND($G$2=\"5 CENT\"))","v":false},{"$f":"AND($O$5=\"CAD\",AND($G$2=\"10 CENT\"))","v":false},{"$f":"AND($O$5=\"CAD\",AND($G$2=\"25 CENT\"))","v":false},{"$f":"AND($O$5=\"CAD\",AND($G$2=\"50 CENT\"))","v":false},{"$f":"AND($O$5=\"CAD\",AND($G$2=\"1 DOLLAR\"))","v":false},{"$f":"AND($O$5=\"CAD\",AND($G$2=\"2 DOLLAR\"))","v":false},{"$f":"AND($O$5=\"AUD\",AND($G$2=\"1 CENT\"))","v":false},{"$f":"AND($O$5=\"AUD\",AND($G$2=\"2 CENT\"))","v":false},{"$f":"AND($O$5=\"AUD\",AND($G$2=\"5 CENT\"))","v":false},{"$f":"AND($O$5=\"AUD\",AND($G$2=\"10 CENT\"))","v":false},{"$f":"AND($O$5=\"AUD\",AND($G$2=\"20 CENT\"))","v":false},{"$f":"AND($O$5=\"AUD\",AND($G$2=\"50 CENT\"))","v":false},{"$f":"AND($O$5=\"AUD\",AND($G$2=\"1 DOLLAR\"))","v":false},{"$f":"AND($O$5=\"AUD\",AND($G$2=\"2 DOLLAR\"))","v":false},null,null,null,null,"SEK","Zweedse kroon"]
[16,17,18,19,20,21,22,23,24,25,26,27,28,29,30,null,null,null,null,"SGD","Singaporese dollar"]
[{"$f":"AND($O$5=\"CHF\",AND($G$2=\"5 CENT\"))","v":false},{"$f":"AND($O$5=\"CHF\",AND($G$2=\"10 CENT\"))","v":false},{"$f":"AND($O$5=\"CHF\",AND($G$2=\"20 CENT\"))","v":false},{"$f":"AND($O$5=\"CHF\",AND($G$2=\"50 CENT\"))","v":false},{"$f":"AND($O$5=\"CHF\",AND($G$2=\"1 FRANC\"))","v":false},{"$f":"AND($O$5=\"CHF\",AND($G$2=\"2 FRANC\"))","v":false},{"$f":"AND($O$5=\"CHF\",AND($G$2=\"5 FRANC\"))","v":false},{"$f":"AND($O$5=\"GBP\",AND($G$2=\"1 PENNY\"))","v":false},{"$f":"AND($O$5=\"GBP\",AND($G$2=\"2 PENCE\"))","v":false},{"$f":"AND($O$5=\"GBP\",AND($G$2=\"5 PENCE\"))","v":false},{"$f":"AND($O$5=\"GBP\",AND($G$2=\"10 PENCE\"))","v":false},{"$f":"AND($O$5=\"GBP\",AND($G$2=\"20 PENCE\"))","v":false},{"$f":"AND($O$5=\"GBP\",AND($G$2=\"50 PENCE\"))","v":false},{"$f":"AND($O$5=\"GBP\",AND($G$2=\"1 POUND\"))","v":false},{"$f":"AND($O$5=\"GBP\",AND($G$2=\"2 POUND\"))","v":false},null,null,null,null,"SRD","Surinaamse dollar"]
[31,32,33,34,35,36,37,38,39,40,41,42,43,44,45,null,null,null,null,"THB","Thaise baht"]
[{"$f":"AND($O$5=\"GBP\",AND($G$2=\"5 POUND\"))","v":false},{"$f":"AND($O$5=\"JPY\",AND($G$2=\"1 YEN\"))","v":false},{"$f":"AND($O$5=\"JPY\",AND($G$2=\"5 YEN\"))","v":false},{"$f":"AND($O$5=\"JPY\",AND($G$2=\"10 YEN\"))","v":false},{"$f":"AND($O$5=\"JPY\",AND($G$2=\"50 YEN\"))","v":false},{"$f":"AND($O$5=\"JPY\",AND($G$2=\"100 YEN\"))","v":false},{"$f":"AND($O$5=\"JPY\",AND($G$2=\"500 YEN\"))","v":false},{"$f":"AND($O$5=\"CNY\",AND($G$2=\"1 YUAN\"))","v":false},null,null,null,null,null,null,null,null,null,null,null,"TND","Tunesische dinar"]
[46,47,48,49,50,51,52,null,null,null,null,null,null,null,null,null,null,null,null,"TRY","Nieuwe Turkse lira"]
[null,null,null,null,null,null,null,null,null,null,null,null,null,null,null,null,null,null,null,"TWD","Nieuwe Taiwanese dollar"]
["EURO 1C","EURO 2C","EURO 5C","EURO 10C","EURO 20C","EURO 50C","1 EURO","2 EURO",null,null,null,null,null,null,null,null,null,null,null,"USD","Amerikaanse dollar"]
[2.2999999999999998,3.06,3.92,4.0999999999999996,5.74,7.8,7.5,8.5,null,null,null,null,null,null,null,null,null,null,null,"VND","Vietnamese dong"]
["USD 1C","USD 5C","USD 10C","USD 25C","USD 50C","USD 1D",null,null,null,null,null,null,null,null,null,null,null,null,null,"ZAR","Zuid-Afrikaanse rand"]
[2.5,5,2.2679999999999998,5.67,11.34,8.1,null,null,null,null,null,null,null,null,null,null,null,null,null,"AED","Ver. Arabische Emiraten Dirham"]
["CAD 1C","CAD 5C","CAD 10C","CAD 25C","CAD 50C","CAD 1D","CAD 2D",null,null,null,null,null,null,null,null,null,null,null,null,"ALL","Albanese lek"]
[2.35,3.95,1.75,4.4000000000000004,6.9,6.27,6.92,null,null,null,null,null,null,null,null,null,null,null,null,"AMD","Armeense dram"]
["AUD 1C","AUD 2C","AUD 5C","AUD 10C","AUD 20C","AUD 50C","AUD 1D","AUD 2D",null,null,null,null,null,null,null,null,null,null,null,"AOA","Angolese kwanza"]
[2.6,5.2,2.83,5.65,11.3,15.55,9,6.6,null,null,null,null,null,null,null,null,null,null,null,"AZM","Azerbeidzjaanse manat"]
["CHF 5C","CHF 10C","CHF 20C","CHF 50C","CHF 1F","CHF 2F","CHF 5F",null,null,null,null,null,null,null,null,null,null,null,null,"BAM","Bosnische mark"]
[1.8,3,4,2.2000000000000002,4.4000000000000004,8.8000000000000007,13.2,null,null,null,null,null,null,null,null,null,null,null,null,"BBD","Barbadiaanse dollar"]
["GBP 1PE","GBP 2PE","GBP 5PE","GBP 10PE","GBP 20PE","GBP 50PE","GBP 1PO *","GBP 2PO","GBP 5PO",null,null,null,null,null,null,null,null,null,null,"BDT","Bengalese taka"]
[3.56,7.12,3.25,6.5,5,8,8.75,12,28.28,null,null,null,null,null,null,null,null,null,null,"BGN","Nieuwe Bulgaarse lev"]
["JPY 1Y","JPY 5Y","JPY 10Y","JPY 50Y","JPY 100Y","JPY 500Y",null,null,null,null,null,null,null,null,null,null,null,null,null,"BHD","Bahreinse dinar"]
[1,3.75,4.5,4,4.8,7,null,null,null,null,null,null,null,null,null,null,null,null,null,"BIF","Burundese frank"]
["CNY 1YU",null,null,null,null,null,null,null,null,null,null,null,null,null,null,null,null,null,null,"BMD","Bermuda-dollar"]
[6.1,null,null,null,null,null,null,null,null,null,null,null,null,null,null,null,null,null,null,"BND","Bruneise dollar"]
[null,null,null,null,null,null,null,null,null,null,null,null,null,null,null,null,null,null,null,"BOB","Boliviaanse boliviano"]
[null,null,null,null,null,null,null,null,null,null,null,null,null,null,null,null,null,null,null,"BTN","Bhutaanse ngultrum"]
[null,null,null,null,null,null,null,null,null,null,null,null,null,null,null,null,null,null,null,"BWP","Botswaanse pula"]
[null,null,null,null,null,null,null,null,null,null,null,null,null,null,null,null,null,null,null,"BYR","Wit-Russische roebel"]
[null,null,null,null,null,null,null,null,null,null,null,null,null,null,null,null,null,null,null,"BZD","Belizaanse dollar"]
[null,null,null,null,null,null,null,null,null,null,null,null,null,null,null,null,null,null,null,"CDF","Congolese frank"]
[null,null,null,null,null,null,null,null,null,null,null,null,null,null,null,null,null,null,null,"COP","Colombiaanse peso"]
[null,null,null,null,null,null,null,null,null,null,null,null,null,null,null,null,null,null,null,"COU","Colombiaanse unidad de valor real"]
[null,null,null,null,null,null,null,null,null,null,null,null,null,null,null,null,null,null,null,"CRC","Costa Ricaanse colon"]
[null,null,null,null,null,null,null,null,null,null,null,null,null,null,null,null,null,null,null,"CSD","Servische dinar"]
[null,null,null,null,null,null,null,null,null,null,null,null,null,null,null,null,null,null,null,"CVE","Kaapverdische escudo"]
[null,null,null,null,null,null,null,null,null,null,null,null,null,null,null,null,null,null,null,"DJF","Djiboutiaanse frank"]
[null,null,null,null,null,null,null,null,null,null,null,null,null,null,null,null,null,null,null,"DZD","Algerijnse dinar"]
[null,null,null,null,null,null,null,null,null,null,null,null,null,null,null,null,null,null,null,"EEK","Estse kroon"]
[null,null,null,null,null,null,null,null,null,null,null,null,null,null,null,null,null,null,null,"ERN","Eritrese nakfa"]
[null,null,null,null,null,null,null,null,null,null,null,null,null,null,null,null,null,null,null,"ETB","Ethiopische birr"]
[null,null,null,null,null,null,null,null,null,null,null,null,null,null,null,null,null,null,null,"FJD","Fiji-dollar"]
[null,null,null,null,null,null,null,null,null,null,null,null,null,null,null,null,null,null,null,"FKP","Falklandeilands pond"]
[null,null,null,null,null,null,null,null,null,null,null,null,null,null,null,null,null,null,null,"GEL","Georgische lari"]
[null,null,null,null,null,null,null,null,null,null,null,null,null,null,null,null,null,null,null,"GHS","Ghanese cedi"]
[null,null,null,null,null,null,null,null,null,null,null,null,null,null,null,null,null,null,null,"GIP","Gibraltarees pond"]
[null,null,null,null,null,null,null,null,null,null,null,null,null,null,null,null,null,null,null,"GMD","Gambiaanse dalasi"]
[null,null,null,null,null,null,null,null,null,null,null,null,null,null,null,null,null,null,null,"GNF","Guineese frank"]
[null,null,null,null,null,null,null,null,null,null,null,null,null,null,null,null,null,null,null,"GTQ","Guatemalaanse quetzal"]
[null,null,null,null,null,null,null,null,null,null,null,null,null,null,null,null,null,null,null,"GYD","Guyaanse dollar"]
[null,null,null,null,null,null,null,null,null,null,null,null,null,null,null,null,null,null,null,"HNL","Hondurese lempira"]
[null,null,null,null,null,null,null,null,null,null,null,null,null,null,null,null,null,null,null,"HRK","Kroatische kuna"]
[null,null,null,null,null,null,null,null,null,null,null,null,null,null,null,null,null,null,null,"HTG","Haïtiaanse gourde"]
[null,null,null,null,null,null,null,null,null,null,null,null,null,null,null,null,null,null,null,"ILS","Nieuwe Israëlische sjekel"]
[null,null,null,null,null,null,null,null,null,null,null,null,null,null,null,null,null,null,null,"KES","Keniaanse shilling"]
[null,null,null,null,null,null,null,null,null,null,null,null,null,null,null,null,null,null,null,"KGS","Kirgizische som"]
[null,null,null,null,null,null,null,null,null,null,null,null,null,null,null,null,null,null,null,"KHR","Cambodjaanse riel"]
[null,null,null,null,null,null,null,null,null,null,null,null,null,null,null,null,null,null,null,"KMF","Comorese frank"]
[null,null,null,null,null,null,null,null,null,null,null,null,null,null,null,null,null,null,null,"KPW","Noord-Koreaanse won"]
[null,null,null,null,null,null,null,null,null,null,null,null,null,null,null,null,null,null,null,"KWD","Koeweitse dinar"]
[null,null,null,null,null,null,null,null,null,null,null,null,null,null,null,null,null,null,null,"KYD","Kaaimaneilandse dollar"]
[null,null,null,null,null,null,null,null,null,null,null,null,null,null,null,null,null,null,null,"KZT","Kazachse tenge"]
[null,null,null,null,null,null,null,null,null,null,null,null,null,null,null,null,null,null,null,"LAK","Laotiaanse kip"]
[null,null,null,null,null,null,null,null,null,null,null,null,null,null,null,null,null,null,null,"LBP","Libanees pond"]
[null,null,null,null,null,null,null,null,null,null,null,null,null,null,null,null,null,null,null,"LKR","Sri Lankaanse roepie"]
[null,null,null,null,null,null,null,null,null,null,null,null,null,null,null,null,null,null,null,"LRD","Liberiaanse dollar"]
[null,null,null,null,null,null,null,null,null,null,null,null,null,null,null,null,null,null,null,"LSL","Lesothaanse loti"]
[null,null,null,null,null,null,null,null,null,null,null,null,null,null,null,null,null,null,null,"LTL","Litouwse litas"]
[null,null,null,null,null,null,null,null,null,null,null,null,null,null,null,null,null,null,null,"LVL","Letse lats"]
[null,null,null,null,null,null,null,null,null,null,null,null,null,null,null,null,null,null,null,"LYD","Libische dinar"]
[null,null,null,null,null,null,null,null,null,null,null,null,null,null,null,null,null,null,null,"MDL","Moldavische leu"]
[null,null,null,null,null,null,null,null,null,null,null,null,null,null,null,null,null,null,null,"MGA","Malagassische ariary"]
[null,null,null,null,null,null,null,null,null,null,null,null,null,null,null,null,null,null,null,"MKD","Macedonische denar"]
[null,null,null,null,null,null,null,null,null,null,null,null,null,null,null,null,null,null,null,"MMK","Myanmarese kyat"]
[null,null,null,null,null,null,null,null,null,null,null,null,null,null,null,null,null,null,null,"MNT","Mongolische tugrik"]
[null,null,null,null,null,null,null,null,null,null,null,null,null,null,null,null,null,null,null,"MOP","Macause pataca"]
[null,null,null,null,null,null,null,null,null,null,null,null,null,null,null,null,null,null,null,"MRO","Mauritaanse ouguiya"]
[null,null,null,null,null,null,null,null,null,null,null,null,null,null,null,null,null,null,null,"MUR","Mauritiaanse roepie"]
[null,null,null,null,null,null,null,null,null,null,null,null,null,null,null,null,null,null,null,"MVR","Maldivische rufiyaa"]
[null,null,null,null,null,null,null,null,null,null,null,null,null,null,null,null,null,null,null,"MWK","Malawische kwacha"]
[null,null,null,null,null,null,null,null,null,null,null,null,null,null,null,null,null,null,null,"MYR","Maleisische ringgit"]
[null,null,null,null,null,null,null,null,null,null,null,null,null,null,null,null,null,null,null,"MZM","Mozambikaanse metical"]
[null,null,null,null,null,null,null,null,null,null,null,null,null,null,null,null,null,null,null,"NAD","Namibische dollar"]
[null,null,null,null,null,null,null,null,null,null,null,null,null,null,null,null,null,null,null,"NGN","Nigeriaanse naira"]
[null,null,null,null,null,null,null,null,null,null,null,null,null,null,null,null,null,null,null,"NIO","Nicaraguaanse Córdoba Oro"]
[null,null,null,null,null,null,null,null,null,null,null,null,null,null,null,null,null,null,null,"NPR","Nepalese roepie"]
[null,null,null,null,null,null,null,null,null,null,null,null,null,null,null,null,null,null,null,"OMR","Omaanse rial"]
[null,null,null,null,null,null,null,null,null,null,null,null,null,null,null,null,null,null,null,"PAB","Panamese balboa"]
[null,null,null,null,null,null,null,null,null,null,null,null,null,null,null,null,null,null,null,"PEN","Nieuwe Peruviaanse sol"]
[null,null,null,null,null,null,null,null,null,null,null,null,null,null,null,null,null,null,null,"PGK","Papoease kina"]
[null,null,null,null,null,null,null,null,null,null,null,null,null,null,null,null,null,null,null,"PHP","Filipijnse peso"]
[null,null,null,null,null,null,null,null,null,null,null,null,null,null,null,null,null,null,null,"PKR","Pakistaanse roepie"]
[null,null,null,null,null,null,null,null,null,null,null,null,null,null,null,null,null,null,null,"PYG","Paraguayaanse guaraní"]
[null,null,null,null,null,null,null,null,null,null,null,null,null,null,null,null,null,null,null,"QAR","Qatarese rial"]
[null,null,null,null,null,null,null,null,null,null,null,null,null,null,null,null,null,null,null,"RWF","Rwandese frank"]
[null,null,null,null,null,null,null,null,null,null,null,null,null,null,null,null,null,null,null,"SBD","Salomon-dollar"]
[null,null,null,null,null,null,null,null,null,null,null,null,null,null,null,null,null,null,null,"SCR","Seychelse roepie"]
[null,null,null,null,null,null,null,null,null,null,null,null,null,null,null,null,null,null,null,"SDG","Soedanees pond"]
[null,null,null,null,null,null,null,null,null,null,null,null,null,null,null,null,null,null,null,"SHP","Sint-Heleens pond"]
[null,null,null,null,null,null,null,null,null,null,null,null,null,null,null,null,null,null,null,"SLL","Sierra Leoonse leone"]
[null,null,null,null,null,null,null,null,null,null,null,null,null,null,null,null,null,null,null,"SOS","Somalische shilling"]
[null,null,null,null,null,null,null,null,null,null,null,null,null,null,null,null,null,null,null,"STD","Santomese dobra"]
[null,null,null,null,null,null,null,null,null,null,null,null,null,null,null,null,null,null,null,"SVC","Salvadoraanse colon"]
[null,null,null,null,null,null,null,null,null,null,null,null,null,null,null,null,null,null,null,"SYP","Syrisch pond"]
[null,null,null,null,null,null,null,null,null,null,null,null,null,null,null,null,null,null,null,"SZL","Swazische lilangeni"]
[null,null,null,null,null,null,null,null,null,null,null,null,null,null,null,null,null,null,null,"TJS","Tadzjiekse somoni"]
[null,null,null,null,null,null,null,null,null,null,null,null,null,null,null,null,null,null,null,"TMM","Turkmeense manat"]
[null,null,null,null,null,null,null,null,null,null,null,null,null,null,null,null,null,null,null,"TOP","Tongaanse pa'anga"]
[null,null,null,null,null,null,null,null,null,null,null,null,null,null,null,null,null,null,null,"TPE","Timorese escudo"]
[null,null,null,null,null,null,null,null,null,null,null,null,null,null,null,null,null,null,null,"TTD","Trinidad en Tobagodollar"]
[null,null,null,null,null,null,null,null,null,null,null,null,null,null,null,null,null,null,null,"TZS","Tanzaniaanse shilling"]
[null,null,null,null,null,null,null,null,null,null,null,null,null,null,null,null,null,null,null,"UAH","Oekraïense grivna"]
[null,null,null,null,null,null,null,null,null,null,null,null,null,null,null,null,null,null,null,"UGX","Oegandese shilling"]
[null,null,null,null,null,null,null,null,null,null,null,null,null,null,null,null,null,null,null,"UYU","Uruguayaanse peso"]
[null,null,null,null,null,null,null,null,null,null,null,null,null,null,null,null,null,null,null,"UZS","Oezbeekse sum"]
[null,null,null,null,null,null,null,null,null,null,null,null,null,null,null,null,null,null,null,"VEF","Venezolaanse bolivar"]
[null,null,null,null,null,null,null,null,null,null,null,null,null,null,null,null,null,null,null,"VUV","Vanuatuaanse vatu"]
[null,null,null,null,null,null,null,null,null,null,null,null,null,null,null,null,null,null,null,"WST","Samoaanse tala"]
[null,null,null,null,null,null,null,null,null,null,null,null,null,null,null,null,null,null,null,"XAF","Centraal-Afrikaanse frank"]
[null,null,null,null,null,null,null,null,null,null,null,null,null,null,null,null,null,null,null,"XCD","Oost-Caribische dollar"]
[null,null,null,null,null,null,null,null,null,null,null,null,null,null,null,null,null,null,null,"XOF","West-Afrikaanse frank"]
[null,null,null,null,null,null,null,null,null,null,null,null,null,null,null,null,null,null,null,"XPF","CFP-frank"]
[null,null,null,null,null,null,null,null,null,null,null,null,null,null,null,null,null,null,null,"YER","Jemenitische rial"]
[null,null,null,null,null,null,null,null,null,null,null,null,null,null,null,null,null,null,null,"ZMK","Zambiaanse kwacha"]
[null,null,null,null,null,null,null,null,null,null,null,null,null,null,null,null,null,null,null,"ZWD","Zimbabwaanse dollar"]

{"sheet":"Sheet2","index":2,"n_rows":0,"n_cols":0,"rows_kept":0,"cut":false,"hidden":true,"merged":[]}

{"sheet":"How to","index":3,"n_rows":31,"n_cols":1,"rows_kept":31,"cut":false,"hidden":false,"merged":[[0,0,0,14],[30,0,30,14]]}
["CoinValue"]
[]
[]
["CoinValue is a tool you can use to estimate the value of coins by weighing them. So it is not a counting device in the literal sense."]
["Although coin counters are an affordable item for most businesses, not everyone needs it on a regular basis. So if you only need to count the coins"]
["in your child's piggy bank this sheet can help you out."]
["It's clear that the accuracy of the results will depend on the accuracy of your weighing device and the condition of your coins!"]
["For our purpose I recommend an accuracy of 0.1 g or higher; 1 g being an absolute minimum (with a little luck you already have one in your kitchen). "]
["Be advised that we are talking about coins in circulation and of the same mintage (weight of all coins = equal)."]
["It's also important to know that the weight of coins given by the official authorities is the weight of new unused coins!"]
[]
[]
["① * Choose your currency."]
["      * Choose the coins you want to weigh."]
["      * Put the total weight of your coins in cell J5."]
[]
["② * If you want to use another currency use ② if you know the total number of coins, or ③ if you know the weight/coin and the total weight of"]
["         your coins."]
[]
[]
["References"]
[]
["EUR: nbb.be"]
["USD: usmint.gov"]
["CAD: mint.ca"]
["AUD: ramint.gov.au"]
["CHF: snb.ch"]
["GBP: royalmint.com"]
["JPY: mint.go.jp"]
["CNY: en.numista.com"]
["CoinValue is © Christiaan Robert Thonus 2018"]